[Event "Fagernes Chess GM-Swiss 2024"]
[Site "Fagernes"]
[Date "2024.03.26"]
[Round "3.8"]
[White "Yaniv, Yuval"]
[Black "Urkedal, Frode Olav Olsen"]
[Result "0-1"]
[ECO "C88"]
[WhiteElo "2368"]
[BlackElo "2536"]
[Annotator "TA"]
[PlyCount "106"]
[EventDate "2024.03.25"]
[EventType "swiss"]
[EventCountry "NOR"]
[SourceTitle "playchess.com"]
[Source "ChessBase"]
[SourceQuality "1"]
[TimeControl "40/6000+30:2400+30"]

{[%evp 28,106,-30,-42,-14,-14,0,-4,-10,-26,0,-47,0,0,0,0,0,0,0,0,0,0,0,0,0,0,0,0,0,-4,0,-62,-65,-64,-69,-56,-44,-142,-143,-162,-148,-170,-155,-151,-125,-125,-131,-105,-124,-168,-147,-291,-99,-106,-105,-90,-93,-160,-60,-71,-71,-222,-194,-200,-145,-316,-269,-429,-408,-502,-502,-501,-480,-479,-403,-487,-478,-506,-505,-526,-504]} 1. e4 {[%emt 0:00:18]} e5 {[%emt 0:00:03]} 2. Nf3 {[%emt 0:00:22]} Nc6 {[%emt 0:00:05]} 3. Bb5 {[%emt 0:00:20]} a6 {[%emt 0:00:04]} 4. Ba4 {[%emt 0:00:07]} Nf6 {[%emt 0:00:05]} 5. O-O {[%emt 0:00:38]} Be7 {[%emt 0:00:05]} 6. Re1 {[%emt 0:00:24]} b5 {[%emt 0:00:05]} 7. Bb3 {[%emt 0:00:04]} O-O {[%emt 0:00:07]} 8. a4 {[%emt 0:00:17]} Bb7 {[%emt 0:00:24]} 9. d3 {[%emt 0:00:11]} d6 {[%emt 0:00:05]} 10. Bd2 {[%emt 0:00:25]} Qd7 {[%emt 0:05:50]} 11. Nc3 {[%emt 0:01:14]} Na5 {[%emt 0:16:52]} 12. Ba2 {[%emt 0:04:57]} c5 {[%emt 0:00:32] C88: Closed Ruy Lopez: Anti-Marshall Systems.} 13. Nd5 {[%emt 0:09:22]} Nxd5 {[%emt 0:02:17]} 14. Bxd5 {[%emt 0:01:20]} Bxd5 {[%emt 0:02:20]} 15. exd5 {[%emt 0:00:26]} Nb7 $146 {[%emt 0:00:14]} ({Predecessor:} 15... b4 16. c3 Qb7 17. cxb4 cxb4 18. d4 f6 19. Nh4 f5 20. Qh5 Bxh4 21. Qxh4 Nb3 22. Rad1 Nxd4 23. Bg5 f4 24. Qg4 Qxd5 {0-1 Murzin,V (2556)-Sargsyan,S (2645) The Game has begun U20 2022 (6)}) 16. c3 {[%emt 0:04:22]} f5 {[%emt 0:05:06]} 17. Ra3 {[%emt 0:09:12]} c4 {[%emt 0:02:02]} 18. d4 {[%emt 0:06:09]} e4 {[%emt 0:01:11]} 19. Bg5 {[%emt 0:00:24]} (19. axb5 $11 Qxb5 (19... exf3 20. bxa6 Nd8 21. Qxf3 $11) (19... axb5 20. Rxa8 Rxa8 21. Ng5 $11) 20. Bg5 Qxb2 21. Ra4 Bxg5 22. Nxg5) 19... Rae8 {[%emt 0:10:34]} 20. Bxe7 {[%emt 0:05:01]} Qxe7 {[%emt 0:00:14]} 21. axb5 {[%emt 0:06:22]} axb5 {[%emt 0:00:25]} 22. Ra7 {[%emt 0:00:51]} h6 {[%emt 0:34:23]} 23. Nd2 {[%emt 0:20:02]} Qf7 {[%emt 0:01:31]} 24. b3 {[%emt 0:00:40]} Qxd5 {[%emt 0:01:40]} 25. bxc4 {[%emt 0:00:10]} bxc4 {[%emt 0:00:05]} 26. Qa4 {[%emt 0:06:20]} Nc5 {[%emt 0:18:11]} 27. Qxc4 {[%emt 0:03:56]} (27. dxc5 Qxd2 28. Qxc4+ d5 $17) 27... Qxc4 {[%emt 0:00:05]} 28. Nxc4 {[%emt 0:00:06]} Nd3 {[%emt 0:00:03]} 29. Re2 {[%emt 0:17:51]} (29. Rb1 $11 Rb8 30. Rba1) 29... Rb8 $15 {[%emt 0:03:33]} 30. h4 {[%emt 0:04:35]} Rb1+ {[%emt 0:00:30]} 31. Kh2 {[%emt 0:00:02]} Rf1 $1 {[%emt 0:05:16]} 32. f3 {[%emt 0:04:30]} ({White should play} 32. Ne3 $15 Rxf2 33. Rxf2 Nxf2 34. Kg1) 32... Nf4 $17 {[%emt 0:00:01]} (32... exf3 33. Ree7 Rd8 34. Rxg7+ Kh8 35. Nb6 fxg2 36. Rh7+ (36. Kxg2 Rf2+ 37. Kh1 Rf1+ 38. Kh2 Rf2+ 39. Kh1 Rf1+ 40. Kg2 Rf2+ 41. Kg1 Rg8 $11) (36. Rxg2 Ne1 $11) 36... Kg8 37. Rag7+ (37. Kxg2 Re1 $18) 37... Kf8 38. Kxg2 $18) 33. Rb2 {[%emt 0:02:38]} exf3 {[%emt 0:00:03]} 34. gxf3 {[%emt 0:00:17]} Rxf3 {[%emt 0:00:12]} 35. Rbb7 {[%emt 0:01:53]} Rh3+ {[%emt 0:00:29]} (35... Rxc3 36. Rxg7+ (36. Nxd6 $2 Rh3+ 37. Kg1 Rg3+ 38. Kf2 Rg4 $17) 36... Kh8 37. Rh7+ Kg8 38. Rag7#) 36. Kg1 {[%emt 0:00:01]} Nh5 {[%emt 0:00:07]} ({Weaker is} 36... Rxh4 37. Rxg7+ (37. Nxd6 $2 Rg4+ 38. Kh2 Ne2 $19) 37... Kh8 38. Rh7+ Kg8 39. Rag7#) 37. Nxd6 {[%emt 0:00:40]} Rxc3 {[%emt 0:00:49]} 38. Re7 {[%emt 0:01:24]} f4 {[%emt 0:00:29]} 39. Ne4 {[%emt 0:01:00]} (39. Rf7 $17) 39... Rc2 $2 {[%emt 0:01:11]} (39... Rc1+ $19 40. Kf2 f3) 40. Rac7 $17 {[%emt 0:01:04]} Rxc7 {[%emt 0:02:18]} 41. Rxc7 {[%emt 0:00:53]} Re8 {[%emt 0:01:49]} 42. Nc3 {[%emt 0:03:27]} ({White should try} 42. Nf2) 42... Rd8 {[%emt 0:00:49]} (42... Re3 $17 {And now ...Nf6 would win.} 43. Rc5 Ng3) 43. d5 {[%emt 0:01:37]} Nf6 {[%emt 0:00:10]} 44. Rc4 $2 {[%emt 0:26:08]} (44. Kg2 $17) 44... g5 $19 {[%emt 0:00:49]} (44... Nxd5 45. Rd4 $11) 45. hxg5 {[%emt 0:00:06]} hxg5 {[%emt 0:00:07]} ({Stronger than} 45... Nxd5 46. Rd4 $11) 46. Kg2 $2 {[%emt 0:04:58]} (46. Rc5 $17) 46... Kf7 {[%emt 0:04:11]} 47. Kf3 {[%emt 0:00:16]} (47. Rc6 $142) 47... Re8 $19 {[%emt 0:01:47]} ({Not} 47... Nxd5 48. Nxd5 Rxd5 49. Kg4 $15) 48. d6 {[%emt 0:02:28]} Re3+ {[%emt 0:03:44]} 49. Kg2 {[%emt 0:00:16]} Rd3 {[%emt 0:07:16]} 50. Nb5 {[%emt 0:01:25]} Rd5 {[%emt 0:01:22]} 51. Nd4 {[%emt 0:01:20]} Rxd6 {[%emt 0:05:13]} 52. Nf3 {[%emt 0:00:24]} Kg6 {[%emt 0:01:07]} 53. Rc5 {[%emt 0:00:11]} Rd5 {[%emt 0:01:18]} 0-1

[Event "Fagernes Chess GM-Swiss 2024"]
[Site "Fagernes"]
[Date "2024.03.26"]
[Round "3.9"]
[White "Lund, Gunnar"]
[Black "Raja Rithvik R"]
[Result "1/2-1/2"]
[ECO "D30"]
[WhiteElo "2335"]
[BlackElo "2532"]
[Annotator "TA"]
[PlyCount "44"]
[EventDate "2024.03.25"]
[EventType "swiss"]
[EventCountry "NOR"]
[SourceTitle "playchess.com"]
[Source "ChessBase"]
[SourceQuality "1"]
[TimeControl "40/6000+30:2400+30"]

{[%evp 13,44,25,31,10,26,0,36,9,33,14,26,5,8,0,5,0,0,0,0,0,0,7,0,0,26,35,27,29,27,0,28,0,42]} 1. d4 {[%emt 0:00:03]} d5 {[%emt 0:01:28]} 2. c4 {[%emt 0:00:11]} e6 {[%emt 0:00:04]} 3. Nf3 {[%emt 0:00:08]} c6 {[%emt 0:00:06]} 4. e3 {[%emt 0:02:31]} Nf6 {[%emt 0:00:26]} 5. Bd3 {[%emt 0:00:45]} Nbd7 {[%emt 0:00:54]} 6. O-O {[%emt 0:01:15]} dxc4 {[%emt 0:13:53]} 7. Bxc4 {[%emt 0:00:11]} Bd6 {[%emt 0:00:46]} 8. Nbd2 {[%emt 0:07:56]} O-O {[%emt 0:14:47]} 9. Be2 {[%emt 0:04:10]} Bc7 {[%emt 0:09:55]} 10. Nc4 {[%emt 0:11:51] Weiß steht etwas besser.} c5 {[%emt 0:05:28]} 11. b3 {[%emt 0:03:39]} b6 {[%emt 0:00:06]} 12. Bb2 {[%emt 0:07:23]} Bb7 {[%emt 0:00:19]} 13. dxc5 {[%emt 0:11:46]} Nxc5 {[%emt 0:00:34]} 14. Qd4 {[%emt 0:02:09]} Qe7 {[%emt 0:06:58]} 15. Rfd1 {[%emt 0:02:42]} Be4 {[%emt 0:08:42]} 16. Nce5 {[%emt 0:09:03]} Rfd8 {[%emt 0:02:30]} 17. Qc4 {[%emt 0:02:02]} Rac8 {[%emt 0:13:24]} 18. Rxd8+ {[%emt 0:05:32]} Rxd8 {[%emt 0:02:51]} 19. b4 {[%emt 0:05:50]} Bd5 {[%emt 0:00:19]} 20. Qc2 {[%emt 0:00:42]} Be4 {[%emt 0:01:07]} 21. Qc4 {[%emt 0:00:26]} Bd5 {[%emt 0:00:23]} 22. Qc2 {[%emt 0:01:06]} Be4 {[%emt 0:00:14] Nicht viel passiert in dieser Partie.   Gewichteter Fehlerwert: Weiß=0.11 (sehr präzise) /Schwarz=0.07 (makellos) .  Ungenau:       	Weiß=2     	Schwarz=2     OK:         	Weiß=4     	Schwarz=8} 1/2-1/2

[Event "Fagernes Chess GM-Swiss 2024"]
[Site "Fagernes"]
[Date "2024.03.26"]
[Round "3.10"]
[White "Moksh Amit Doshi"]
[Black "Blomqvist, Erik"]
[Result "1/2-1/2"]
[ECO "E15"]
[WhiteElo "2353"]
[BlackElo "2511"]
[Annotator "RC"]
[PlyCount "110"]
[EventDate "2024.03.25"]
[EventType "swiss"]
[EventCountry "NOR"]
[SourceTitle "playchess.com"]
[Source "ChessBase"]
[SourceQuality "1"]
[TimeControl "40/6000+30:2400+30"]

1. d4 {[%emt 0:02:19]} Nf6 {[%emt 0:00:22]} 2. c4 {[%emt 0:00:35]} e6 {[%emt 0:00:11]} 3. Nf3 {[%emt 0:00:05]} b6 {[%emt 0:00:10]} 4. g3 {[%emt 0:02:29]} Ba6 {[%emt 0:00:13]} 5. Qc2 {[%emt 0:02:19]} c5 {[%emt 0:00:55]} 6. d5 {[%emt 0:01:34]} exd5 {[%emt 0:00:16]} 7. cxd5 {[%emt 0:00:07]} Bb7 {[%emt 0:00:18]} 8. Bg2 {[%emt 0:00:42]} Nxd5 {[%emt 0:00:16]} 9. O-O {[%emt 0:00:18]} Nc6 {[%emt 0:00:25]} 10. Rd1 {[%emt 0:01:17]} Be7 {[%emt 0:00:31]} 11. Qf5 {[%emt 0:01:58]} Nf6 {[%emt 0:00:37]} 12. e4 {[%emt 0:00:13]} g6 {[%emt 0:00:27]} 13. Qf4 {[%emt 0:00:53]} O-O {[%emt 0:00:20]} 14. Nc3 {[%emt 0:01:39]} d6 {[%emt 0:00:53]} 15. b3 {[%emt 0:07:20]} Nh5 {[%emt 0:05:39]} 16. Qd2 {[%emt 0:04:10]} Bf6 {[%emt 0:01:58]} 17. Bb2 {[%emt 0:01:40]} Ng7 {[%emt 0:06:14]} 18. Nb5 {[%emt 0:23:32]} Bxb2 {[%emt 0:08:34]} 19. Qxb2 {[%emt 0:00:11]} Qe7 {[%emt 0:04:50]} 20. Nxd6 {[%emt 0:02:55]} Rad8 {[%emt 0:05:46]} 21. Nxb7 {[%emt 0:16:51]} Qxb7 {[%emt 0:00:22]} 22. Qf6 {[%emt 0:00:41]} Ne6 {[%emt 0:05:05]} 23. h4 {[%emt 0:01:27]} Qe7 {[%emt 0:15:46]} 24. Qxe7 {[%emt 0:01:52]} Nxe7 {[%emt 0:00:12]} 25. Bh3 {[%emt 0:01:07]} Rxd1+ {[%emt 0:01:56]} 26. Rxd1 {[%emt 0:00:09]} Rd8 {[%emt 0:00:06]} 27. Rxd8+ {[%emt 0:01:32]} Nxd8 {[%emt 0:00:09]} 28. Bd7 {[%emt 0:01:55]} Nec6 {[%emt 0:01:42]} 29. Bxc6 {[%emt 0:00:24]} Nxc6 {[%emt 0:00:07]} 30. Kf1 {[%emt 0:01:30]} f6 {[%emt 0:03:26]} 31. Ke2 {[%emt 0:00:50]} Kf7 {[%emt 0:00:12]} 32. Nd2 {[%emt 0:02:51]} Ke6 {[%emt 0:03:12]} 33. Ke3 {[%emt 0:06:07]} b5 {[%emt 0:10:32]} 34. g4 {[%emt 0:06:32]} h6 {[%emt 0:07:06]} 35. f4 {[%emt 0:03:03]} g5 {[%emt 0:01:08]} 36. hxg5 {[%emt 0:03:19]} hxg5 {[%emt 0:00:40]} 37. a4 {[%emt 0:03:24]} gxf4+ {[%emt 0:17:39]} 38. Kxf4 {[%emt 0:00:18]} c4 {[%emt 0:00:13]} 39. bxc4 {[%emt 0:01:44]} bxa4 {[%emt 0:00:06]} 40. Nb1 {[%emt 0:01:27]} Ne5 {[%emt 0:04:24]} 41. Na3 {[%emt 0:40:52]} a6 {[%emt 0:41:26]} 42. g5 {[%emt 0:00:00]} fxg5+ {[%emt 0:00:00]} 43. Kxg5 {[%emt 0:00:00]} Nd3 {[%emt 0:00:00]} 44. c5 {[%emt 0:00:00]} Kd7 {[%emt 0:00:00]} 45. Kf5 {[%emt 0:00:00]} Kc6 {[%emt 0:00:00]} 46. e5 {[%emt 0:00:00]} Nb4 {[%emt 0:00:00]} 47. e6 {[%emt 0:00:00]} Nd5 {[%emt 0:00:00]} 48. Ke4 {[%emt 0:00:00]} Kxc5 {[%emt 0:00:00]} 49. Nc2 {[%emt 0:00:00]} a5 {[%emt 0:00:00]} 50. Kd3 {[%emt 0:01:49]} Nf4+ {[%emt 0:00:00]} 51. Kc3 {[%emt 0:00:06]} Nxe6 {[%emt 0:00:00]} 52. Kb2 {[%emt 0:00:07]} Kc4 {[%emt 0:00:00]} 53. Ka3 {[%emt 0:00:13]} Nc5 {[%emt 0:00:00]} 54. Ne3+ {[%emt 0:00:12]} Kd4 {[%emt 0:00:00]} 55. Nf5+ {[%emt 0:00:28]} Ke5 {[%emt 0:00:00]} 1/2-1/2

[Event "Fagernes Chess GM-Swiss 2024"]
[Site "Fagernes"]
[Date "2024.03.26"]
[Round "3.11"]
[White "Can, Isik"]
[Black "Audi Ameya"]
[Result "1/2-1/2"]
[ECO "D91"]
[WhiteElo "2493"]
[BlackElo "2378"]
[Annotator "TA"]
[PlyCount "102"]
[EventDate "2024.03.25"]
[EventType "swiss"]
[EventCountry "NOR"]
[SourceTitle "playchess.com"]
[Source "ChessBase"]
[SourceQuality "1"]
[TimeControl "40/6000+30:2400+30"]

{[%evp 20,102,0,0,0,-7,12,8,18,0,16,-9,-16,-14,-10,-8,-3,-11,0,-55,-10,-51,-25,-29,-10,-27,-17,-15,-16,-16,-17,-18,-18,-18,-18,-18,-18,-20,-7,-9,0,-20,-23,-25,-20,-22,13,-44,-44,-42,8,5,4,7,5,12,14,0,28,31,28,34,61,22,17,0,31,0,0,-10,-10,-10,-10,-10,0,0,0,0,0,0,0,0,0,0,0]} 1. d4 {[%emt 0:04:05]} Nf6 {[%emt 0:00:05]} 2. c4 {[%emt 0:00:03]} g6 {[%emt 0:01:00]} 3. Nc3 {[%emt 0:00:38]} d5 {[%emt 0:03:15]} 4. Nf3 {[%emt 0:02:06]} Bg7 {[%emt 0:00:06]} 5. Bg5 {[%emt 0:06:44]} Ne4 {[%emt 0:00:19]} 6. cxd5 {[%emt 0:00:04]} Nxg5 {[%emt 0:00:43]} 7. Nxg5 {[%emt 0:00:02]} e6 {[%emt 0:00:16]} 8. Qd2 {[%emt 0:00:02]} h6 {[%emt 0:20:25]} 9. Nf3 {[%emt 0:01:26]} exd5 {[%emt 0:00:25]} 10. e3 {[%emt 0:00:39]} O-O {[%emt 0:00:57]} 11. Bd3 {[%emt 0:09:18]} Re8 {[%emt 0:00:53]} 12. O-O {[%emt 0:00:07]} Nc6 {[%emt 0:12:33][%cal Bb8c6,Bc6e7,Be7f5,Bf5d6,Bd6c4][%mdl 32]} 13. Rfc1 {[%emt 0:04:25]} Bg4 {[%emt 0:01:02]} 14. Be2 {[%emt 0:02:50]} Ne7 {[%emt 0:04:47]} 15. h3 {[%emt 0:11:37]} Bxf3 {[%emt 0:00:37]} 16. Bxf3 {[%emt 0:00:02]} c6 {[%emt 0:00:18]} 17. b4 {[%emt 0:01:12]} a6 {[%emt 0:01:50]} 18. a4 {[%emt 0:01:19]} Nf5 {[%emt 0:02:22]} 19. Bg4 {[%emt 0:04:42]} ({Vorzuziehen ist} 19. Qd1 $11) 19... Nd6 {[%emt 0:01:45]} 20. Nd1 {[%emt 0:20:58]} Nc4 {[%emt 0:15:19]} 21. Qc3 {[%emt 0:00:07]} h5 {[%emt 0:01:21]} 22. Be2 {[%emt 0:06:34]} b5 {[%emt 0:00:04]} 23. axb5 {[%emt 0:03:56]} axb5 {[%emt 0:00:05]} 24. Rxa8 {[%emt 0:00:20]} Qxa8 {[%emt 0:00:04]} 25. Ra1 {[%emt 0:00:03] Es drohte Qa2} Qb8 {[%emt 0:17:53]} 26. Nb2 {[%emt 0:05:01]} Qb6 {[%emt 0:00:16][%cal Oc4e3]} 27. Kf1 {[%emt 0:12:20]} Kh7 {[%emt 0:00:13]} 28. Ra2 {[%emt 0:02:23]} Qc7 {[%emt 0:05:00]} 29. Kg1 {[%emt 0:00:01] Gegen Qh2+ gerichtet.} Qe7 {[%emt 0:00:26]} 30. Bf3 {[%emt 0:03:53]} (30. Nd3 $5) 30... Bf8 {[%emt 0:10:25][%cal Bg7f8,Bf8b4,Bb4d6][%mdl 32]} 31. Nd3 {[%emt 0:02:04]} Qg5 {[%emt 0:00:51]} 32. Ra6 {[%emt 0:01:48][%cal Ba2a6,Ba6c6,Bc6c8,Bc8b8,Bb8b5][%mdl 32]} Re6 {[%emt 0:03:22] [#]} 33. Ne5 {[%emt 0:00:56]} Nxe5 $15 {[%emt 0:04:40]} 34. dxe5 {[%emt 0:00:02]} Qh4 {[%emt 0:00:16]} ({Günstiger ist} 34... Qf5 $15 35. Rxc6 Bxb4 (35... Rxe5 36. g4 $14)) 35. Rxc6 $11 {[%emt 0:01:20] und nun wäre Rc7 stark für Weiss.} Bxb4 {[%emt 0:00:09]} 36. Qc2 $36 {[%emt 0:01:01][%mdl 2048] Schwarz sollte Rc7 verhindern. Schwarz steht unter Druck.} Rxe5 {[%emt 0:01:18]} 37. Qb2 {[%emt 0:00:08]} Qe7 {[%emt 0:00:43]} 38. Rc8 {[%emt 0:01:07][%cal Of3d5]} Qd7 {[%emt 0:00:59]} 39. Rb8 {[%emt 0:02:05]} Bd6 {[%emt 0:02:14]} 40. Rxb5 {[%emt 0:00:06]} Qc6 {[%emt 0:00:32]} 41. Rb6 {[%emt 0:12:23]} Qc5 {[%emt 0:03:17][%cal Oe5e3] [#] ...Rxe3! ist eine echte Drohung.} 42. Rb5 {[%emt 0:00:53]} Qc4 {[%emt 0:03:18][%cal Od5d4]} 43. Rb7 {[%emt 0:01:19]} d4 {[%emt 0:02:57] Die Stellung ist ausgeglichen.} 44. Qb3 {[%emt 0:10:25]} (44. Qxd4 $2 {geht unter.} Qxd4 45. Rb1 Qh4 $19) 44... Qc1+ {[%emt 0:07:12]} 45. Qd1 $1 {[%emt 0:00:01]} Qxd1+ {[%emt 0:01:18]} 46. Bxd1 {[%emt 0:00:02]} dxe3 {[%emt 0:00:05] Zielt auf ...e2 ab.} 47. Rxf7+ {[%emt 0:00:51] KRB-KRB} Kg8 {[%emt 0:04:43]} 48. Rf6 {[%emt 0:02:32][%csl LRd6,LRg6]} Bc5 {[%emt 0:00:23]} 49. fxe3 $1 {[%emt 0:00:51]} Bxe3+ {[%emt 0:00:14]} 50. Kf1 {[%emt 0:01:19]} Kg7 {[%emt 0:00:05]} 51. Rf3 {[%emt 0:00:29]} h4 {[%emt 0:00:19] Gewichteter Fehlerwert: Weiß=0.10 (sehr präzise) /Schwarz=0.10 (sehr präzise) .  Fehler:       	Weiß=2     	Schwarz=1     Ungenau:       	Weiß=3     	Schwarz=6     OK:         	Weiß=18    	Schwarz=18    Bester:       	Weiß=1     	---        Stark:        	Weiß=2     	---} 1/2-1/2

[Event "Fagernes Chess GM-Swiss 2024"]
[Site "Fagernes"]
[Date "2024.03.26"]
[Round "3.12"]
[White "Hedman, Erik"]
[Black "Koelle, Tobias"]
[Result "0-1"]
[ECO "B51"]
[WhiteElo "2311"]
[BlackElo "2460"]
[Annotator "TA"]
[PlyCount "100"]
[EventDate "2024.03.25"]
[EventType "swiss"]
[EventCountry "NOR"]
[SourceTitle "playchess.com"]
[Source "ChessBase"]
[SourceQuality "1"]
[TimeControl "40/6000+30:2400+30"]

{[%evp 17,100,12,8,0,0,15,19,-5,11,-37,-18,-23,0,0,0,-20,0,-20,54,0,0,0,0,0,0,0,0,-83,0,0,0,0,0,0,0,0,143,143,135,135,135,0,0,-145,-126,-220,-199,-251,-248,-254,-261,-261,-255,-237,-225,-197,-16,-16,-16,-16,-16,-63,-10,-10,-10,-15,-15,-700,-540,-1189,-1189,-1196,-1196,-1202,-1202,-4362,-4314,-3206,-2614,-1442,-210,-1135,-874,-5375,-5375]} 1. e4 {[%emt 0:01:40]} c5 {[%emt 0:00:16]} 2. Nf3 {[%emt 0:00:16]} d6 {[%emt 0:00:06]} 3. Bb5+ {[%emt 0:00:14]} Nd7 {[%emt 0:01:42]} 4. c4 {[%emt 0:00:10]} Ngf6 {[%emt 0:01:57]} 5. Nc3 {[%emt 0:00:05]} g6 {[%emt 0:02:26]} 6. d3 {[%emt 0:01:12] B51: Sicilian: Moscow Variation (3 Bb5+) without 3...Bd7.} Bg7 {[%emt 0:01:15]} 7. h3 {[%emt 0:00:12]} O-O {[%emt 0:00:10]} 8. Ba4 {[%emt 0:00:03]} Nb8 {[%emt 0:05:00]} 9. Rb1 $146 {[%emt 0:07:04]} ({Predecessor:} 9. O-O Bd7 10. Bxd7 Nfxd7 11. Be3 Nc6 12. d4 Rc8 13. b3 a6 14. Rc1 Qa5 15. a4 {½-½ Duda,J (2750)-Giri,A (2760) FTX Road to Miami KO 2022 (1.12)}) 9... Nc6 {[%emt 0:02:27]} 10. Be3 {[%emt 0:01:03]} Nd7 {[%emt 0:09:15]} 11. Bxc6 {[%emt 0:00:42]} bxc6 {[%emt 0:00:08]} 12. Qd2 {[%emt 0:01:16]} e5 {[%emt 0:11:22]} 13. h4 {[%emt 0:10:24]} (13. O-O $11) 13... f5 {[%emt 0:10:04]} 14. Bg5 $1 {[%emt 0:01:06]} Qe8 {[%emt 0:01:22]} 15. h5 {[%emt 0:00:13]} f4 {[%emt 0:06:00]} 16. hxg6 {[%emt 0:02:42]} Qxg6 {[%emt 0:03:03]} 17. Ke2 {[%emt 0:04:39]} Rf7 {[%emt 0:02:15]} (17... Nb6 $11) 18. g3 {[%emt 0:06:06]} (18. Rbg1 $14) 18... fxg3 $1 $11 {[%emt 0:05:34]} 19. Rbg1 $1 {[%emt 0:00:57]} gxf2 {[%emt 0:08:21]} 20. Kxf2 {[%emt 0:00:13]} Nf8 {[%emt 0:09:39]} 21. Rg3 {[%emt 0:18:16]} h5 {[%emt 0:03:13]} 22. Kg2 {[%emt 0:03:36] [#]} (22. Ke1 $11 {was the only way to keep the balance.}) 22... Bg4 {[%emt 0:01:57]} (22... Rxf3 $1 $17 23. Kxf3 (23. Rxf3 $2 Bg4 $19) 23... Bg4+ 24. Kf2 Ne6) 23. Nh4 $11 {[%emt 0:02:56]} Qe6 {[%emt 0:01:06]} 24. Nd1 $1 {[%emt 0:00:27]} Ng6 {[%emt 0:07:20]} 25. Nxg6 {[%emt 0:14:35]} Qxg6 {[%emt 0:00:02]} 26. Nf2 {[%emt 0:00:14]} Raf8 {[%emt 0:07:51]} (26... Rf4 $11 27. Nxg4 (27. Bxf4 exf4 28. Qxf4 Rf8 $11) 27... Rxg4 (27... Qxg5 $2 28. Ne3 $18) 28. Rxg4 hxg4) 27. Nxg4 $16 {[%emt 0:00:26]} hxg4 {[%emt 0:00:07]} 28. Rxg4 {[%emt 0:00:15]} d5 {[%emt 0:03:53]} 29. Rg3 {[%emt 0:15:44]} ({Don't play} 29. cxd5 $6 cxd5 30. Rhh4 Qa6 $11) ({White should try} 29. Qe2 $16 {And now Be3 would win.} Rf3 30. Qxf3 (30. cxd5 cxd5 31. Qxf3 Rxf3 $11) 30... Rxf3 31. Kxf3 dxe4+ 32. dxe4 Qf7+ 33. Kg3) 29... dxe4 $11 {[%emt 0:01:23]} 30. Bh6 {[%emt 0:03:17]} (30. Be3 $11 {keeps the balance.} Qf5 31. Bxc5) 30... Qf5 $17 {[%emt 0:02:16]} 31. Bxg7 {[%emt 0:08:34]} (31. Qg5 $17 Qxg5 32. Bxg5 exd3 33. Rxd3) 31... Rxg7 $19 {[%emt 0:00:05]} 32. Rxg7+ {[%emt 0:01:28]} Kxg7 {[%emt 0:00:02]} 33. Qh6+ {[%emt 0:03:25]} Kf7 {[%emt 0:00:50]} 34. Qh7+ {[%emt 0:00:50]} Qxh7 {[%emt 0:00:05]} 35. Rxh7+ {[%emt 0:00:04]} Kg6 {[%emt 0:00:09]} 36. Rh3 {[%emt 0:00:21]} Rd8 $2 {[%emt 0:02:34]} (36... Kf5 $19 {White must now prevent ...Rd8.} 37. Re3 Rd8 38. Rxe4 Rxd3) 37. dxe4 $11 {[%emt 0:00:25]} Rd2+ {[%emt 0:00:02]} 38. Kf1 {[%emt 0:00:34]} Rxb2 {[%emt 0:00:06]} 39. Ra3 {[%emt 0:00:19]} (39. Rf3 $1 $11) 39... Kg5 {[%emt 0:02:19]} (39... Rc2 $15) 40. Rf3 $1 $11 {[%emt 0:01:42]} Rxa2 {[%emt 0:01:32]} 41. Rf5+ {[%emt 0:40:11]} Kg4 {[%emt 0:06:24]} 42. Rxe5 $2 {[%emt 0:00:00][%mdl 8192] [#]} (42. Ke1 $11) 42... Kf3 $1 $19 {[%emt 0:00:14]} 43. Rf5+ {[%emt 0:00:00]} Kxe4 {[%emt 0:00:21]} 44. Rxc5 {[%emt 0:00:00]} Ra6 {[%emt 0:00:41]} 45. Rh5 {[%emt 0:00:00]} Kd3 {[%emt 0:08:15]} 46. c5 {[%emt 0:00:00]} Ra1+ {[%emt 0:00:05]} 47. Kf2 {[%emt 0:00:00]} Rc1 {[%emt 0:00:46]} 48. Rh3+ {[%emt 0:00:00]} Kd4 $2 {[%emt 0:05:17]} (48... Kd2 49. Ra3 Rxc5 50. Rxa7 Rf5+ 51. Kg3 Kc3) 49. Ra3 $2 {[%emt 0:00:00]} (49. Ke2 Kxc5 (49... Rxc5 $2 50. Kd2 $19) 50. Kd2) 49... Rxc5 $19 {[%emt 0:00:19]} ({And not} 49... Kxc5 50. Rxa7 Kd4 51. Ke2 $11) 50. Rxa7 {[%emt 0:00:00]} Re5 {[%emt 0:00:22]} 0-1

[Event "Fagernes Chess GM-Swiss 2024"]
[Site "Fagernes"]
[Date "2024.03.26"]
[Round "3.13"]
[White "Chasin, Nico"]
[Black "Nielsen, Viktor Haarmark"]
[Result "1-0"]
[ECO "C78"]
[WhiteElo "2447"]
[BlackElo "2351"]
[Annotator "TA"]
[PlyCount "53"]
[EventDate "2024.03.25"]
[EventType "swiss"]
[EventCountry "NOR"]
[SourceTitle "playchess.com"]
[Source "ChessBase"]
[SourceQuality "1"]
[TimeControl "40/6000+30:2400+30"]

{[%evp 19,52,31,47,0,0,0,0,0,0,0,7,8,0,2,35,53,35,32,177,166,177,170,173,189,173,184,810,714,614,608,29994,29995,29997,29998,29999]} 1. e4 {[%emt 0:09:14]} e5 {[%emt 0:00:08]} 2. Nf3 {[%emt 0:00:04]} Nc6 {[%emt 0:00:06]} 3. Bb5 {[%emt 0:00:14]} a6 {[%emt 0:00:14]} 4. Ba4 {[%emt 0:00:06]} Nf6 {[%emt 0:00:07]} 5. O-O {[%emt 0:00:32]} b5 {[%emt 0:00:24]} 6. Bb3 {[%emt 0:00:06]} Bc5 {[%emt 0:00:04]} 7. c3 {[%emt 0:00:27]} d6 {[%emt 0:00:16]} 8. d4 {[%emt 0:00:06]} Bb6 {[%emt 0:00:24]} 9. a4 {[%emt 0:00:14]} Rb8 {[%emt 0:04:09]} 10. axb5 {[%emt 0:01:23]} axb5 {[%emt 0:00:08]} 11. h3 {[%emt 0:00:02]} (11. Na3 $14 {deserves consideration.}) 11... O-O $1 $11 {[%emt 0:07:03]} 12. Re1 {[%emt 0:00:51]} h6 {[%emt 0:13:54]} 13. Na3 {[%emt 0:03:25] The position is equal.} exd4 {[%emt 0:07:36]} 14. cxd4 {[%emt 0:04:57]} Na5 {[%emt 0:01:41]} 15. Bc2 {[%emt 0:02:57]} b4 {[%emt 0:01:31]} 16. Nb1 {[%emt 0:00:03]} d5 {[%emt 0:18:11]} 17. e5 $36 {[%emt 0:03:31][%mdl 2048] White has some pressure.} Ne4 {[%emt 0:00:07]} 18. Nbd2 {[%emt 0:00:05]} Bf5 {[%emt 0:00:49] Black cannot hold the game after this.} (18... Nc6 $1 $14) 19. Nxe4 $18 {[%emt 0:02:50]} ({Don't play} 19. Bxe4 $6 dxe4 20. Nxe4 Qd5 $14) 19... Bxe4 {[%emt 0:00:12]} 20. Bxe4 {[%emt 0:00:08]} dxe4 {[%emt 0:00:04]} 21. Rxe4 {[%emt 0:00:02][%cal Oc1h6] Bxh6! would now be deadly.} Qd5 {[%emt 0:00:50]} 22. Rg4 {[%emt 0:00:03]} Kh8 $2 {[%emt 0:05:34] [#]} (22... f5 23. exf6 Rxf6) 23. Bxh6 $1 {[%emt 0:00:19][%mdl 512]} gxh6 {[%emt 0:00:49]} 24. Qd2 $1 {[%emt 0:00:04][%csl LRb4,LRh6]} Kh7 {[%emt 0:06:05][%cal Bh8h7,Bh7g6,Bg6f5][%mdl 32] [#]} 25. Ng5+ $1 {[%emt 0:01:46][%cal Bf3g5,Bg5e6,Be6g7][%mdl 544] White mates.} Kg6 {[%emt 0:00:35]} (25... Kh8 26. Ne4) 26. Ne6+ {[%emt 0:00:05]} Kf5 {[%emt 0:00:16]} 27. Ng7# {[%emt 0:00:05] Weighted Error Value: White=0.05 (flawless) /Black=0.63.  Mistake:       	---       	Black=2      Inaccurate:     	---       	Black=1      OK:         	White=6     	Black=5      Best:        	White=1     	Black=1      Strong:       	---       	Black=1      Brilliant:      	White=1     	---} 1-0